bitfinex/quotes_BTCUSD_20251104
["timestamp","ask_amount","ask_price","bid_price","bid_amount"]
[1762273801451,0.19476093,102690.0,102680.0,0.01057]
[1762273801662,0.19476093,102690.0,102680.0,0.0002]
[1762273801886,0.44028321,102690.0,102680.0,0.0002]
[1762273802090,0.44028321,102690.0,102680.0,0.00048738]
[1762273802091,1.5300025,102690.0,102680.0,0.00048738]
[1762273802318,0.87485927,102690.0,102680.0,0.00048738]
[1762273802534,0.88470596,102690.0,102680.0,0.00048738]
[1762273802739,0.53485927,102690.0,102680.0,0.00048738]
[1762273802955,0.44938093,102690.0,102680.0,0.00048738]
[1762273803168,0.48556321,102690.0,102680.0,0.00048738]
[1762273803372,0.48556321,102690.0,102680.0,0.00152738]
[1762273803373,0.48856321,102690.0,102680.0,0.00152738]
[1762273803781,0.44328321,102690.0,102680.0,0.00156738]
[1762273803984,0.003,102690.0,102680.0,0.79490099]
[1762273804189,0.04838,102710.0,102690.0,0.19476066]
[1762273804398,0.28836404,102720.0,102710.0,0.194723]
[1762273804399,0.09366,102720.0,102710.0,0.194723]
[1762273804611,0.25281293,102740.0,102720.0,0.19470404]
[1762273804831,0.35241293,102740.0,102710.0,0.79327672]
[1762273805047,0.25281293,102740.0,102720.0,0.74993776]
[1762273805244,0.34267963,102740.0,102720.0,0.55523372]
[1762273805447,0.34267963,102740.0,102720.0,0.74993773]
[1762273805652,0.25604509,102730.0,102720.0,0.74993776]
[1762273805862,0.14798,102740.0,102720.0,1.08993776]
[1762273805984,0.34364759,102740.0,102730.0,0.19468509]
[1762273806194,0.04938,102740.0,102730.0,0.74991881]
[1762273806403,0.29570614,102740.0,102730.0,0.55523372]
[1762273806609,0.19468509,102730.0,102720.0,0.343]
[1762273806829,0.29527509,102730.0,102720.0,0.343]
[1762273807040,0.10059,102730.0,102720.0,0.00304]
[1762273807241,0.04938,102740.0,102730.0,0.19468509]
[1762273807447,0.005,102740.0,102730.0,0.78436881]
[1762273807774,0.005,102740.0,102730.0,0.89623372]
[1762273807775,0.05338,102740.0,102730.0,0.89623372]
[1762273807974,0.39783614,102740.0,102730.0,1.09091881]
[1762273808203,0.04838,102740.0,102730.0,1.08991881]
[1762273808415,0.39692614,102740.0,102730.0,0.89623372]
[1762273808591,0.39692614,102740.0,102730.0,0.341]
[1762273809138,0.11274,102740.0,102730.0,0.53568509]
[1762273809367,0.39692614,102740.0,102730.0,0.53568509]
[1762273809561,0.39692614,102740.0,102730.0,0.34104]
[1762273809853,0.39692614,102740.0,102730.0,0.53576509]
[1762273810087,0.39692614,102740.0,102730.0,0.34108]
[1762273810239,1.09757903,102740.0,102730.0,0.00108]
[1762273810445,1.10157903,102740.0,102730.0,0.00122]
[1762273810845,1.10157903,102740.0,102720.0,0.00016]
[1762273810846,0.19468509,102730.0,102720.0,0.00016]
[1762273811161,0.19474196,102700.0,102680.0,0.24544]
[1762273811525,0.19476093,102690.0,102680.0,0.20068738]
[1762273811673,0.24553093,102690.0,102680.0,0.00068738]
[1762273811858,0.34465093,102690.0,102680.0,0.00035623]
[1762273812516,0.34465093,102690.0,102680.0,0.00139623]
[1762273812921,0.38499488,102690.0,102680.0,0.00039623]
[1762273813120,0.42117716,102690.0,102680.0,0.00190876]
[1762273813349,0.97941088,102690.0,102680.0,0.00290876]
[1762273813550,0.98937251,102690.0,102680.0,0.00294876]
[1762273813949,0.98341088,102690.0,102680.0,0.00398876]
[1762273814129,0.38783321,102690.0,102680.0,0.00398876]
[1762273814326,0.38083321,102690.0,102680.0,0.00198876]
[1762273814738,0.93906693,102690.0,102680.0,0.00298876]
[1762273815172,0.38383321,102690.0,102680.0,0.00298876]
[1762273815508,1.03364299,102690.0,102680.0,0.00298876]
[1762273816051,0.48440927,102690.0,102680.0,0.00402876]
[1762273816259,0.35365093,102690.0,102680.0,0.00402876]
[1762273816465,0.25453093,102690.0,102680.0,0.19884865]
[1762273816671,0.20376093,102690.0,102680.0,0.19884865]
[1762273816870,0.26042093,102690.0,102680.0,0.00410876]
[1762273817073,0.41556385,102690.0,102680.0,0.00410876]
[1762273817478,0.41556385,102690.0,102680.0,0.00414876]
[1762273817680,0.35371093,102690.0,102680.0,0.00414876]
[1762273817884,0.35371093,102690.0,102680.0,0.19892865]
[1762273818088,0.35371093,102690.0,102680.0,0.00414876]
[1762273818987,0.38989321,102690.0,102680.0,0.00414876]
[1762273819169,0.94512693,102690.0,102680.0,0.00414876]
[1762273819370,1.03970299,102690.0,102680.0,0.00414876]
[1762273819560,0.48446927,102690.0,102680.0,0.00414876]
[1762273819761,0.38989321,102690.0,102680.0,0.00414876]
[1762273820051,0.35371093,102690.0,102680.0,0.00414876]
[1762273820456,0.009,102690.0,102680.0,0.19892865]
[1762273820657,0.009,102690.0,102680.0,1.22880237]
[1762273821057,0.009,102690.0,102680.0,1.34781894]
[1762273821288,0.009,102690.0,102680.0,1.33775989]
[1762273823221,0.19470441,102720.0,102700.0,1.14572277]
[1762273823422,0.19470404,102720.0,102710.0,0.194723]
[1762273823734,0.19470404,102720.0,102710.0,0.34]
[1762273823916,0.19519021,102720.0,102710.0,0.34]
[1762273824123,0.194723,102710.0,102700.0,0.001]
[1762273824318,0.291253,102710.0,102700.0,0.342]
[1762273824773,0.289253,102710.0,102700.0,0.341]
[1762273824935,0.289253,102710.0,102700.0,0.34]
[1762273825487,0.19474196,102700.0,102690.0,0.38524]
[1762273825698,0.34420196,102700.0,102690.0,0.38524]
[1762273825931,0.39829446,102700.0,102690.0,0.04524]
[1762273826134,0.34420196,102700.0,102690.0,0.04524]
[1762273826374,0.19476093,102690.0,102680.0,0.20032]
[1762273826579,0.006,102710.0,102700.0,0.19474196]
[1762273826784,0.194723,102710.0,102700.0,0.19474196]
[1762273826957,0.19674196,102700.0,102690.0,0.53576093]
[1762273827165,0.19774196,102700.0,102690.0,0.53776093]
[1762273827532,0.002,102700.0,102690.0,0.53576093]
[1762273827733,0.19674196,102700.0,102690.0,0.341]
[1762273827958,0.19674196,102700.0,102690.0,0.53698792]
[1762273828159,0.002,102700.0,102690.0,0.53698792]
[1762273828369,0.29858541,102720.0,102710.0,0.194723]
[1762273828565,0.09414617,102720.0,102710.0,0.194723]
[1762273828782,0.19519021,102720.0,102710.0,0.534723]
[1762273829516,0.00048617,102720.0,102710.0,0.534723]
[1762273829736,0.00048617,102720.0,102710.0,1.08995672]
[1762273829737,0.19519021,102720.0,102710.0,1.08995672]
[1762273829938,0.00048617,102720.0,102710.0,1.08995672]
[1762273830147,0.00748617,102720.0,102710.0,1.33853672]
[1762273830350,0.00748617,102720.0,102710.0,1.67323672]
[1762273830754,0.01148617,102720.0,102710.0,1.58477672]
[1762273830956,0.01148617,102720.0,102710.0,1.67470672]
[1762273831396,0.01148617,102720.0,102710.0,1.58377672]
[1762273831575,0.19519021,102720.0,102710.0,0.38524]
[1762273831734,0.19619021,102720.0,102710.0,0.38724]
[1762273831931,0.19619021,102720.0,102710.0,0.582963]
[1762273831932,0.19819021,102720.0,102710.0,0.582963]
[1762273832139,0.00348617,102720.0,102710.0,0.582963]
[1762273832339,0.00348617,102720.0,102710.0,1.27407672]
[1762273832573,0.00348617,102720.0,102710.0,1.47407672]
[1762273833361,0.00348617,102720.0,102710.0,1.40121672]
[1762273833762,0.19819021,102720.0,102710.0,1.40121672]
[1762273834000,0.00348617,102720.0,102710.0,1.40195277]
[1762273834378,0.19819021,102720.0,102710.0,1.33893277]
[1762273834814,0.19819021,102720.0,102710.0,0.78369905]
[1762273835362,0.00348617,102720.0,102710.0,1.40227277]
[1762273835565,0.00348617,102720.0,102710.0,1.47534277]
[1762273836729,0.19468509,102730.0,102720.0,31.28643583]
[1762273836933,0.19468509,102730.0,102720.0,30.33651383]
[1762273837157,0.34609509,102730.0,102720.0,30.33651383]
[1762273837744,0.34609509,102730.0,102720.0,29.99651383]
[1762273837745,0.4001718,102730.0,102720.0,29.99651383]
[1762273837944,0.43635408,102730.0,102720.0,29.99651383]
[1762273838145,0.38227737,102730.0,102720.0,29.99651383]
[1762273838585,0.38627737,102730.0,102720.0,29.99751383]
[1762273839158,0.94151109,102730.0,102720.0,29.99751383]
[1762273839357,0.38627737,102730.0,102720.0,29.99751383]
[1762273839737,0.28722737,102730.0,102720.0,29.99751383]
[1762273839975,0.19868509,102730.0,102720.0,31.18592159]
[1762273840180,0.004,102730.0,102720.0,31.43112159]
[1762273840379,0.19868509,102730.0,102720.0,31.43112159]
[1762273840581,0.004,102730.0,102720.0,31.43112159]
[1762273841140,0.20168509,102730.0,102720.0,31.23741755]
[1762273841357,0.20168509,102730.0,102720.0,31.33365159]
[1762273841560,0.20168509,102730.0,102720.0,30.38371383]
[1762273841729,0.35262509,102730.0,102720.0,30.38371383]
[1762273842129,0.35262509,102730.0,102720.0,30.38420448]
[1762273842555,0.007,102730.0,102720.0,30.57890852]
[1762273842728,0.20168509,102730.0,102720.0,31.33414224]
[1762273843080,0.007,102730.0,102720.0,31.43261224]
[1762273843740,0.25276096,102750.0,102740.0,29.79484595]
[1762273843958,0.3420786,102750.0,102740.0,29.98951209]
[1762273844141,0.3944386,102750.0,102740.0,29.98951209]
[1762273844334,0.24205883,102760.0,102740.0,30.54474581]
[1762273844548,0.19477407,102760.0,102750.0,0.74988092]
[1762273844979,0.00014581,102760.0,102750.0,0.74988092]
[1762273845185,0.19477407,102760.0,102750.0,0.74988092]
[1762273845386,0.19477407,102760.0,102750.0,0.1946472]
[1762273845603,0.19477407,102760.0,102740.0,31.12994581]
[1762273845604,0.1946472,102750.0,102740.0,31.12994581]
[1762273845835,0.1946472,102750.0,102740.0,0.57986614]
[1762273846037,0.29706479,102760.0,102740.0,0.57986614]
[1762273846284,0.20177407,102760.0,102750.0,0.74988092]
[1762273846521,0.00714581,102760.0,102750.0,1.44572092]
[1762273847053,0.00314581,102760.0,102750.0,1.44572092]
[1762273847256,0.00014581,102760.0,102750.0,1.44572092]
[1762273847456,0.00014581,102760.0,102750.0,1.45545572]
[1762273847677,0.00014581,102760.0,102750.0,0.7977372]
[1762273847876,0.00014581,102760.0,102750.0,1.44572092]
[1762273848590,0.0004,102840.0,102810.0,0.1945336]
[1762273848804,0.00088698,102840.0,102830.0,4.8449632]
[1762273849004,0.0254,102850.0,102840.0,0.73447685]
[1762273849220,0.02554596,102850.0,102840.0,1.24541014]
[1762273849462,0.02554596,102850.0,102840.0,1.39796057]
[1762273849660,0.02554596,102850.0,102840.0,0.79775403]
[1762273849907,0.02554596,102850.0,102840.0,0.60327718]
[1762273850106,0.02554596,102850.0,102840.0,0.79775403]
[1762273850382,0.02554596,102850.0,102840.0,0.59775403]
[1762273850383,0.00293248,102850.0,102840.0,0.59775403]
[1762273850526,0.00293248,102850.0,102840.0,1.35298775]
[1762273851297,0.00393248,102850.0,102840.0,1.42107775]
[1762273851470,0.00393248,102850.0,102840.0,1.35798775]
[1762273851680,0.00293248,102850.0,102840.0,1.35498775]
[1762273851883,0.00378521,102850.0,102840.0,1.35798775]
[1762273852692,0.00378521,102850.0,102840.0,1.51382775]
[1762273853255,0.00378521,102850.0,102840.0,2.06906147]
[1762273853965,0.00378521,102850.0,102840.0,1.51382775]
[1762273854160,0.00378521,102850.0,102840.0,1.1183509]
[1762273854364,0.36769737,102850.0,102840.0,0.02311718]
[1762273854501,0.35695315,102850.0,102840.0,0.02311718]
[1762273854706,0.00378521,102850.0,102840.0,0.02311718]
[1762273854911,0.26127315,102850.0,102840.0,0.02311718]
[1762273855129,0.35695315,102850.0,102840.0,0.02311718]
[1762273855677,0.35695315,102850.0,102840.0,0.003]
[1762273855876,0.19449576,102830.0,102820.0,0.75947365]
[1762273856084,0.29016782,102840.0,102830.0,0.34]
[1762273856331,0.24068243,102830.0,102810.0,0.58031372]
[1762273856541,0.24068243,102830.0,102810.0,0.2196136]
[1762273856542,0.19451468,102820.0,102810.0,0.2196136]
[1762273856897,0.19451468,102820.0,102810.0,0.36508]
[1762273857101,0.19451468,102820.0,102810.0,0.2196136]
[1762273857644,0.30491132,102850.0,102820.0,0.20424041]
[1762273857846,0.00405049,102850.0,102840.0,1.70803429]
[1762273858071,0.00205049,102850.0,102840.0,1.09523372]
[1762273858297,0.19650843,102850.0,102840.0,0.34]
[1762273858707,0.19650843,102850.0,102840.0,0.53447685]
[1762273858943,0.19650843,102850.0,102830.0,0.80035372]
[1762273858944,0.19447685,102840.0,102830.0,0.80035372]
[1762273859146,0.35821843,102850.0,102840.0,0.005]
[1762273859349,0.00505049,102850.0,102840.0,0.19947685]
[1762273859769,0.00505049,102850.0,102840.0,1.18471057]
[1762273859996,0.00505049,102850.0,102840.0,1.34055057]
[1762273860408,0.00205049,102850.0,102840.0,1.44093134]
[1762273860611,0.00205049,102850.0,102840.0,1.44193134]
[1762273860816,0.00405049,102850.0,102840.0,1.44193134]
[1762273861067,0.00205049,102850.0,102840.0,1.99616506]
[1762273861302,0.00605049,102850.0,102840.0,1.99716506]
[1762273861578,0.00705049,102850.0,102840.0,2.00216506]
[1762273861833,0.00778521,102850.0,102840.0,2.00216506]
[1762273862040,0.00378521,102850.0,102840.0,2.00116506]
[1762273862251,0.00971705,102910.0,102900.0,29.31027605]
[1762273862466,0.30264042,102910.0,102900.0,29.31027605]
[1762273862920,0.30755042,102910.0,102900.0,29.31027605]
[1762273863122,0.25752042,102910.0,102900.0,29.5046395]
[1762273863335,0.00014585,102910.0,102900.0,29.5046395]
[1762273863544,0.19449042,102910.0,102900.0,29.5046395]
[1762273863744,0.00014585,102910.0,102900.0,29.5046395]
[1762273864176,0.19449042,102910.0,102900.0,29.31027605]
[1762273864378,0.29017042,102910.0,102900.0,29.31027605]
[1762273864585,0.29017042,102910.0,102900.0,29.40402605]
[1762273864586,0.00414585,102910.0,102900.0,29.40402605]
[1762273864801,0.33956042,102910.0,102900.0,29.31027605]
[1762273865026,0.47202269,102910.0,102900.0,29.31027605]
[1762273865236,1.16516316,102910.0,102900.0,29.32817917]
[1762273865657,1.17016316,102910.0,102900.0,29.32917917]
[1762273865871,1.51016316,102910.0,102900.0,28.32114622]
[1762273866085,1.6247392,102910.0,102900.0,27.94397434]
[1762273866501,1.6237392,102910.0,102900.0,27.64144179]
[1762273866730,4.6288142,102910.0,102900.0,27.34141084]
[1762273866948,4.59263192,102910.0,102900.0,27.34241084]
[1762273867155,3.88051374,102910.0,102900.0,27.058101]
[1762273867369,1.6248142,102910.0,102900.0,26.76199342]
[1762273867603,1.6348142,102910.0,102900.0,26.43895732]
[1762273867814,1.6348142,102910.0,102900.0,26.4312131]
[1762273867815,1.53612314,102910.0,102900.0,26.4312131]
[1762273868013,1.52659146,102910.0,102900.0,26.4272131]
[1762273868440,1.52659146,102910.0,102900.0,26.4302131]
[1762273868441,1.62679146,102910.0,102900.0,26.4302131]
[1762273868867,1.62679146,102910.0,102900.0,25.99225577]
[1762273869078,1.63186654,102910.0,102900.0,25.72043306]
[1762273869282,4.7264426,102910.0,102900.0,25.44612803]
[1762273869491,4.7254426,102910.0,102900.0,25.16050849]
[1762273869838,4.7264426,102910.0,102900.0,24.86545671]
[1762273870076,1.7264426,102910.0,102900.0,24.86545671]
[1762273870282,1.7254426,102910.0,102900.0,24.57669248]
[1762273870482,1.7254426,102910.0,102900.0,24.33137387]
[1762273870483,2.47374306,102910.0,102900.0,24.33137387]
[1762273870720,2.47474306,102910.0,102900.0,24.05913482]
[1762273870842,2.47474306,102910.0,102900.0,23.78712828]
[1762273871048,5.48474305,102910.0,102900.0,23.43396213]
[1762273871247,5.48374305,102910.0,102900.0,23.40178494]
[1762273871448,5.33946305,102910.0,102900.0,23.40178494]
[1762273871658,4.73840259,102910.0,102900.0,23.40178494]
[1762273871871,4.59416259,102910.0,102900.0,23.40178494]
[1762273872071,4.7284426,102910.0,102900.0,23.40178494]
[1762273872266,4.5841626,102910.0,102900.0,23.40178494]
[1762273872466,1.73844259,102910.0,102900.0,23.40178494]
[1762273872674,4.73844259,102910.0,102900.0,22.953477]
[1762273872979,4.59416259,102910.0,102900.0,22.69825484]
[1762273873156,1.69436259,102910.0,102900.0,22.69925484]
[1762273873367,5.5757661,102910.0,102900.0,20.40639107]
[1762273873590,5.4314861,102910.0,102900.0,20.02347375]
[1762273873788,5.4324861,102910.0,102900.0,19.99729735]
[1762273873996,5.4324861,102910.0,102900.0,19.51076477]
[1762273874220,5.4314861,102910.0,102900.0,19.27316244]
[1762273874421,5.4314861,102910.0,102900.0,19.04761025]
[1762273874629,5.5767661,102910.0,102900.0,18.39189351]
[1762273874870,5.6007661,102910.0,102900.0,18.12727695]
[1762273875048,5.5767661,102910.0,102900.0,16.77938068]
[1762273875271,5.50554868,102910.0,102900.0,15.94445215]
[1762273875631,5.52923325,102910.0,102900.0,15.46991244]
[1762273875838,5.55325033,102910.0,102900.0,15.06492627]
[1762273876018,5.55298885,102910.0,102900.0,15.03574987]
[1762273876248,5.01572004,102910.0,102900.0,15.00657347]
[1762273876467,4.39350099,102910.0,102900.0,14.94722067]
[1762273876682,5.17998373,102910.0,102900.0,14.75734507]
[1762273876944,5.04070373,102910.0,102900.0,14.56871095]
[1762273877119,5.38070373,102910.0,102900.0,14.35422578]
[1762273877368,5.38770373,102910.0,102900.0,14.32603836]
[1762273877573,5.52298373,102910.0,102900.0,13.94719663]
[1762273877778,5.52298373,102910.0,102900.0,13.69272995]
[1762273878011,4.63240327,102910.0,102900.0,13.69372995]
[1762273878223,4.59622099,102910.0,102900.0,13.69372995]
[1762273878596,4.22622101,102910.0,102900.0,13.69372995]
[1762273878773,4.380501,102910.0,102900.0,13.69372995]
[1762273878983,4.236221,102910.0,102900.0,13.69372995]
[1762273879195,1.36012528,102910.0,102900.0,13.69372995]
[1762273879406,1.38057932,102910.0,102900.0,13.69372995]
[1762273879770,4.72057932,102910.0,102900.0,13.69372995]
[1762273879992,4.7567616,102910.0,102900.0,13.69372995]
[1762273880377,1.16978083,102910.0,102900.0,13.69372995]
[1762273880597,1.15707286,102910.0,102900.0,13.69272995]
[1762273880775,1.51283582,102910.0,102900.0,13.69172995]
[1762273880986,1.53425514,102910.0,102900.0,13.69372995]
[1762273881180,1.53525514,102910.0,102900.0,13.69372995]
[1762273881383,1.19425514,102910.0,102900.0,13.69172995]
[1762273881617,1.19125514,102910.0,102900.0,13.69172995]
[1762273881769,1.43099288,102910.0,102900.0,13.69772995]
[1762273881987,1.59527286,102910.0,102900.0,13.69772995]
[1762273882190,1.45099286,102910.0,102900.0,13.69772995]
[1762273882387,0.6773504,102910.0,102900.0,13.69772995]
[1762273882613,0.72216785,102910.0,102900.0,13.69772995]
[1762273882814,0.14274328,102910.0,102900.0,13.69772995]
[1762273883020,0.19432736,102920.0,102900.0,13.69972995]
[1762273883394,1.1540703,102930.0,102910.0,0.09202305]
[1762273883395,0.20442448,102930.0,102910.0,0.09202305]
[1762273883594,0.04617,102940.0,102910.0,0.10174027]
[1762273883801,0.04197903,102930.0,102910.0,0.97911351]
[1762273884006,0.04197903,102930.0,102910.0,0.13921305]
[1762273884214,0.04197903,102930.0,102910.0,0.18659911]
[1762273884458,0.04197903,102930.0,102910.0,0.42813315]
[1762273884652,0.00247064,102920.0,102910.0,0.23378911]
[1762273884850,0.04197903,102930.0,102920.0,0.09]
[1762273885145,0.05008,102930.0,102920.0,0.09]
[1762273885630,0.04813,102930.0,102920.0,0.09]
[1762273885857,0.05008,102930.0,102920.0,0.09]
[1762273886297,0.04608,102930.0,102920.0,0.09]
[1762273886520,0.04508,102930.0,102920.0,0.09]
[1762273886984,0.04508,102930.0,102920.0,0.83830046]
[1762273887215,0.04508,102930.0,102920.0,0.85670277]
[1762273887449,0.25018561,102980.0,102920.0,0.85670277]
[1762273887450,0.04617,102980.0,102920.0,1.20860845]
[1762273887684,0.0004,102990.0,102970.0,0.94253178]
[1762273887920,0.00023143,102990.0,102980.0,1.08830046]
[1762273888145,0.00023143,102990.0,102980.0,0.00999999]
[1762273888363,0.04257143,102990.0,102980.0,0.01801406]
[1762273889079,0.04543143,102990.0,102980.0,0.77631451]
[1762273889570,0.04543143,102990.0,102980.0,0.02801405]
[1762273889571,0.04738711,102990.0,102980.0,0.02801405]
[1762273889823,0.00218711,102990.0,102980.0,0.02801405]
[1762273890077,0.04738711,102990.0,102980.0,0.81246035]
[1762273890340,0.04516,102990.0,102980.0,0.81246035]
[1762273890598,0.04616,102990.0,102980.0,0.81246035]
[1762273890864,0.09895,102990.0,102980.0,0.01801406]
[1762273891350,0.67932588,102990.0,102980.0,0.01801406]
[1762273891548,0.67932588,102990.0,102980.0,0.01759406]
[1762273891549,0.48513227,102990.0,102980.0,0.01759406]
[1762273891671,0.05379,102990.0,102980.0,0.01759406]
[1762273891917,0.32932589,102990.0,102980.0,0.01759406]
[1762273892312,0.32907485,102990.0,102980.0,0.01759406]
[1762273892517,0.09469896,102990.0,102980.0,0.01759406]
[1762273892732,0.00074896,102990.0,102980.0,0.86791756]
[1762273892932,0.04594896,102990.0,102980.0,1.15670608]
[1762273893166,0.00074896,102990.0,102980.0,1.31602608]
[1762273893365,0.0012398,102990.0,102980.0,1.65602608]
[1762273893585,0.00097325,102990.0,102980.0,1.65602608]
[1762273893790,0.00097325,102990.0,102980.0,1.63843202]
[1762273893999,0.04274,103020.0,103000.0,0.59937621]
[1762273894220,0.04192,103010.0,102980.0,0.52759911]
[1762273894425,0.0068,103000.0,102980.0,0.53159911]
[1762273894626,0.05204,103000.0,102980.0,0.53159911]
[1762273894777,0.09361,103000.0,102980.0,0.53159911]
[1762273894984,0.05204,103000.0,102980.0,0.53159911]
[1762273895155,0.001,102990.0,102980.0,0.83986136]
[1762273895356,0.001,102990.0,102980.0,0.88984136]
[1762273895681,0.08808584,103020.0,102990.0,0.20390204]
[1762273895895,0.04288584,103020.0,103010.0,0.09202305]
[1762273896054,0.08812584,103020.0,103010.0,0.09202305]
[1762273896252,0.04968584,103020.0,103010.0,0.09202305]
[1762273896698,0.13645584,103020.0,103010.0,0.09202305]
[1762273897345,0.13645584,103020.0,102980.0,0.52659911]
[1762273897346,0.3305931,103020.0,102980.0,0.52659911]
[1762273897548,0.04157,103010.0,103000.0,0.09202305]
[1762273897828,0.00042,102990.0,102980.0,0.09202305]
[1762273898057,0.04157,103010.0,102980.0,0.09202305]
[1762273898190,0.04157,103010.0,103000.0,0.09202305]
[1762273898592,0.04871,103010.0,103000.0,0.09202305]
[1762273898830,0.09587,103010.0,103000.0,0.09202305]
[1762273899203,0.05071,103010.0,103000.0,0.09202305]
[1762273899432,0.0543,103010.0,103000.0,0.09202305]
[1762273899630,0.0593,103010.0,103000.0,0.10122535]
[1762273899830,0.10101864,103010.0,103000.0,0.09202305]
[1762273900058,0.30488233,103010.0,102980.0,0.09202305]
[1762273900251,0.25816369,103010.0,102980.0,0.09202305]
[1762273900474,0.04147434,103000.0,102980.0,0.09202305]
[1762273900788,0.00024434,103000.0,102980.0,0.16448238]
[1762273901486,0.00024434,103000.0,102980.0,0.16748238]
[1762273901637,0.08701535,103000.0,102980.0,0.16448238]
[1762273901826,0.0068,102990.0,102980.0,0.09202305]
[1762273902159,0.04612,103000.0,102980.0,0.09502305]
[1762273902558,0.001,103000.0,102980.0,0.28923544]
[1762273902767,0.001,103000.0,102990.0,0.19419361]
[1762273902971,0.001,103000.0,102990.0,0.04834291]
[1762273903136,0.0429,103000.0,102980.0,0.09602305]
[1762273903344,0.001,103000.0,102980.0,0.2902311]
[1762273903713,0.001,103000.0,102980.0,0.2892311]
[1762273903918,0.001,103000.0,102980.0,0.36838239]
[1762273904123,0.001,103000.0,102990.0,0.19419361]
[1762273904336,0.08478584,103020.0,102980.0,0.36538239]
[1762273904529,0.12990584,103020.0,103010.0,0.09202305]
[1762273904764,0.00054584,103020.0,103010.0,0.16220535]
[1762273904970,0.00054584,103020.0,103010.0,0.45633609]
[1762273905176,0.00054584,103020.0,103010.0,0.45581125]
[1762273905380,0.00054584,103020.0,103010.0,0.50097125]
[1762273905611,0.00054584,103020.0,103010.0,0.40152125]
[1762273906016,0.00054584,103020.0,103010.0,0.68715895]
[1762273906191,0.00054584,103020.0,103010.0,0.79160895]
[1762273906805,0.00154584,103020.0,103010.0,0.79760895]
[1762273907015,0.00154584,103020.0,103010.0,0.26345305]
[1762273907238,0.00054584,103020.0,103010.0,0.45160895]
[1762273907460,0.00054584,103020.0,103010.0,0.18624713]
[1762273907667,0.00154584,103020.0,103010.0,0.10102305]
[1762273907870,0.00054584,103020.0,103010.0,0.09702305]
[1762273908082,0.00054584,103020.0,103010.0,0.26287305]
[1762273908290,0.00054584,103020.0,103010.0,0.79702895]
[1762273908501,0.00154584,103020.0,103010.0,0.89560501]
[1762273909493,0.00054584,103020.0,103010.0,0.89160501]
[1762273909831,0.00054584,103020.0,103010.0,0.53159911]
[1762273910032,0.00054584,103020.0,103010.0,0.53559911]
[1762273910189,0.00103441,103020.0,103010.0,0.53359911]
[1762273910594,0.00203441,103020.0,103010.0,0.53759911]
[1762273910795,0.00103441,103020.0,103010.0,0.60399911]
[1762273911000,0.00103441,103020.0,103010.0,0.53759911]
[1762273911773,0.24395147,103020.0,103010.0,0.011]
[1762273911985,0.04981441,103020.0,103010.0,0.011]
[1762273912385,0.24395147,103020.0,103010.0,0.011]
[1762273912595,0.24395147,103020.0,103010.0,0.004]
[1762273912800,0.24895147,103020.0,103010.0,0.004]
[1762273913019,0.24795152,103020.0,102980.0,0.75225587]
[1762273913234,0.00042,102990.0,102980.0,0.09202305]
[1762273913647,0.2727284,102990.0,102950.0,0.09202305]
[1762273913847,0.27269637,102990.0,102970.0,0.09202305]
[1762273913996,0.04135439,102980.0,102970.0,0.09202305]
[1762273914203,0.25250747,102980.0,102950.0,0.09202305]
[1762273914425,0.25250747,102980.0,102970.0,0.09202305]
[1762273914652,0.21115308,102980.0,102950.0,0.11117035]
[1762273914863,0.21115308,102980.0,102950.0,0.09202305]
[1762273915074,0.04101,102960.0,102950.0,0.09202305]
[1762273915276,0.04101,102960.0,102950.0,0.09250955]
[1762273915801,0.0452,102970.0,102950.0,0.09250955]
[1762273916212,0.08655,102970.0,102950.0,0.09650955]
[1762273916523,0.08655,102970.0,102950.0,0.12558903]
[1762273916696,0.08655,102970.0,102950.0,0.09250955]
[1762273916856,0.04924,102960.0,102950.0,0.09750955]
[1762273917041,0.04924,102960.0,102950.0,0.10350955]
[1762273917252,0.04612,102970.0,102950.0,0.84614414]
[1762273917464,0.08747,102970.0,102950.0,0.84614414]
[1762273917668,0.08847,102970.0,102950.0,0.93575855]
[1762273917900,0.002,102970.0,102960.0,0.91348459]
[1762273918124,0.001,102970.0,102960.0,1.00828478]
[1762273918322,0.001,102970.0,102960.0,0.74763459]
[1762273918526,0.001,102970.0,102960.0,1.03646084]
[1762273919155,0.001,102970.0,102960.0,1.20231084]
[1762273919357,0.04512,103000.0,102970.0,0.2039246]
[1762273919584,0.08647,103000.0,102990.0,0.09202305]
[1762273919907,0.04858,103000.0,102990.0,0.09202305]
[1762273920113,0.28791475,103000.0,102990.0,0.09202305]
[1762273920317,0.33315817,103000.0,102970.0,0.09202305]
[1762273920667,7e-05,102980.0,102970.0,0.09202305]
[1762273920863,0.24904348,103000.0,102970.0,0.09250955]
[1762273921041,0.04108,102980.0,102970.0,0.09250955]
[1762273921208,0.23529246,102980.0,102970.0,0.09250955]
[1762273921407,0.23476208,102980.0,102970.0,0.0004865]
[1762273921809,0.31384007,102980.0,102970.0,0.0004865]
[1762273922019,0.61094436,102980.0,102970.0,0.0004865]
[1762273922248,0.61817436,102980.0,102970.0,0.0004865]
[1762273922455,1.36680895,102980.0,102970.0,0.0004865]
[1762273922659,1.37680894,102980.0,102970.0,0.0004865]
[1762273922897,4.38680893,102980.0,102970.0,0.0014865]
[1762273923118,4.37680894,102980.0,102970.0,0.0014865]
[1762273923347,4.37654852,102980.0,102970.0,0.0004865]
[1762273923581,4.38629074,102980.0,102970.0,0.0004865]
[1762273923800,4.39029074,102980.0,102970.0,0.0014865]
[1762273924015,4.38629074,102980.0,102970.0,0.0004865]
[1762273924464,3.62865616,102980.0,102970.0,0.0014865]
[1762273924692,3.62765616,102980.0,102970.0,0.0014865]
[1762273924901,0.63765615,102980.0,102970.0,0.0014865]
[1762273925132,0.59895938,102970.0,102930.0,0.09202305]
[1762273925332,0.1859435,102960.0,102950.0,0.09202305]
[1762273925542,0.31924094,102960.0,102950.0,0.09202305]
[1762273925745,0.19426914,102950.0,102930.0,0.09202305]
[1762273925952,0.00899,102940.0,102930.0,0.09202305]
[1762273926159,0.29758,102940.0,102930.0,0.09202305]
[1762273926581,0.49160912,102940.0,102920.0,0.00281863]
[1762273926787,0.04857803,102930.0,102920.0,0.00281863]
[1762273927519,0.24288484,102930.0,102920.0,0.00281863]
[1762273927716,0.31614018,102930.0,102920.0,0.00281863]
[1762273927937,0.36954314,102930.0,102920.0,0.00296447]
[1762273928142,0.80156619,102930.0,102920.0,0.00296447]
[1762273928484,0.75482314,102930.0,102920.0,0.00296447]
[1762273928696,1.39932149,102930.0,102920.0,0.00296447]
[1762273928896,1.41932147,102930.0,102920.0,0.00296447]
[1762273929021,4.41880091,102930.0,102920.0,0.00696447]
[1762273929229,4.97227621,102930.0,102920.0,0.00696447]
[1762273930035,4.41880091,102930.0,102920.0,0.00296447]
[1762273930464,4.33558558,102930.0,102920.0,0.00296447]
[1762273930600,1.32554559,102930.0,102920.0,0.00296447]
[1762273930805,1.28026559,102930.0,102920.0,0.00296447]